bitfinex/quotes_ETHUSD_20250505
["timestamp","ask_amount","ask_price","bid_price","bid_amount"]
[1746463956394,0.51635186,1812.8,1812.5,14.55399296]
[1746463956572,5.5160893,1812.9,1812.5,14.55399296]
[1746463956774,0.30995369,1812.7,1812.6,5.51672122]
[1746463957000,5.5180951,1812.3,1812.1,4.651]
[1746463957181,5.5180951,1812.3,1812.1,10.45043106]
[1746463957808,5.51746082,1812.5,1812.1,15.96874082]
[1746463957993,5.51734785,1812.5,1812.2,6.3269523]
[1746463958198,0.31013182,1812.4,1812.2,6.3269523]
[1746463958510,0.31013182,1812.4,1812.2,3.03836258]
[1746463958813,5.51734785,1812.5,1812.2,8.55651285]
[1746463958996,5.51734785,1812.5,1812.2,3.03836258]
[1746463959204,0.31020497,1812.4,1812.2,3.03836258]
[1746463959412,5.51734785,1812.5,1812.2,3.03836258]
[1746463959923,5.51764399,1812.4,1812.2,3.03836258]
[1746463960610,6.34528116,1812.3,1812.1,5.25345106]
[1746463960810,5.51836474,1812.2,1811.9,10.67275106]
[1746463961310,0.82747628,1812.1,1811.9,10.67275106]
[1746463961515,0.51714461,1812.0,1811.9,10.67275106]
[1746463961720,0.31033167,1812.0,1811.9,10.67275106]
[1746463962022,0.82754199,1812.0,1811.9,10.67275106]
[1746463962189,0.82754199,1812.0,1811.9,16.19181944]
[1746463962929,0.51721032,1812.0,1811.9,16.19181944]
[1746463963526,0.51721032,1812.0,1811.9,10.67275106]
[1746463964412,0.82759535,1812.0,1811.9,10.67275106]
[1746463968205,6.34635914,1812.0,1811.9,9.90445106]
[1746463968536,6.34635914,1812.0,1811.9,4.651]
[1746463969845,5.51937299,1811.8,1811.7,5.25345106]
[1746463970136,5.82975802,1811.8,1811.6,12.90445106]
[1746463970457,6.34696834,1811.8,1811.6,12.90445106]
[1746463970658,0.82759535,1811.8,1811.6,18.42441973]
[1746463970803,5.51920365,1811.9,1811.6,12.90445106]
[1746463971405,1.18296314,1811.9,1811.5,0.751]
[1746463971645,5.51983714,1811.7,1811.5,0.751]
[1746463972008,0.51707448,1811.6,1811.3,9.21976822]
[1746463972209,0.51707448,1811.6,1811.3,15.25661928]
[1746463972734,0.51707448,1811.5,1811.3,15.25661928]
[1746463973123,5.51983714,1811.7,1811.3,11.55758316]
[1746463973307,5.51983714,1811.7,1811.4,5.52049193]
[1746463973813,0.51658744,1811.6,1811.3,11.55758316]
[1746463974149,0.51658744,1811.6,1811.3,17.07827959]
[1746463974445,5.51962892,1811.8,1811.4,11.45059695]
[1746463974645,0.30985075,1811.7,1811.4,11.45059695]
[1746463975621,5.51922533,1811.9,1811.5,5.52024613]
[1746463975808,5.51939841,1811.8,1811.6,0.7572]
[1746463976414,5.51922533,1811.9,1811.6,0.7572]
[1746463976646,0.51618794,1811.8,1811.6,0.7572]
[1746463977024,5.5194049,1811.8,1811.6,0.7572]
[1746463977425,5.51967765,1811.7,1811.6,0.7572]
[1746463977742,6.03582844,1811.7,1811.6,3.20683197]
[1746463978447,6.34547891,1811.7,1811.6,3.20683197]
[1746463978625,6.34547891,1811.7,1811.4,3.20683197]
[1746463978626,5.52028705,1811.5,1811.4,3.20683197]
[1746463978825,5.52025003,1811.6,1811.4,3.20683197]
[1746463979734,5.52025003,1811.6,1811.3,5.25345106]
[1746463979919,6.27010991,1811.7,1811.4,5.52054255]
[1746463980119,5.51980991,1811.7,1811.4,5.52054255]
[1746463980530,5.51920831,1811.9,1811.5,0.87510096]
[1746463980853,5.82897464,1811.8,1811.5,0.8199]
[1746463981029,0.51593454,1811.7,1811.5,0.8199]
[1746463981433,5.82897464,1811.8,1811.5,0.8199]
[1746463981434,5.51939327,1811.8,1811.5,6.3401401]
[1746463981771,5.51939327,1811.8,1811.5,0.8199]
[1746463982063,5.51939327,1811.8,1811.5,6.34018056]
[1746463982461,0.51589016,1811.7,1811.5,7.23037215]
[1746463982764,5.51939327,1811.8,1811.5,7.28556975]
[1746463982936,5.51920831,1811.9,1811.5,7.28541274]
[1746463983133,0.5158908,1811.8,1811.5,7.23021514]
[1746463983333,0.5158908,1811.8,1811.6,11.45821876]
[1746463983564,5.51892723,1812.0,1811.7,1.14582188]
[1746463983748,0.30954724,1811.9,1811.7,6.66548447]
[1746463983953,6.34453337,1811.9,1811.7,1.14582188]
[1746463984162,6.34453337,1811.9,1811.6,11.19190204]
[1746463984344,0.82545931,1811.9,1811.6,11.19190204]
[1746463984540,0.82545931,1811.8,1811.6,11.19190204]
[1746463985281,5.51923323,1811.9,1811.6,11.19190204]
[1746463986071,5.51892723,1812.0,1811.6,16.71176599]
[1746463986247,0.51677784,1811.9,1811.7,1.6711766]
[1746463986447,0.51677784,1811.9,1811.7,8.00788634]
[1746463986754,0.51677784,1811.8,1811.7,2.4331766]
[1746463987071,0.82686195,1811.8,1811.7,2.4331766]
[1746463987445,0.82686195,1811.8,1811.7,7.95285425]
[1746463987954,0.51677784,1811.8,1811.7,7.95285425]
[1746463988372,0.51677784,1812.0,1811.7,13.47238736]
[1746463988588,0.51677784,1812.0,1811.8,17.81051936]
[1746463988879,0.51677784,1812.0,1811.8,23.32966949]
[1746463989047,5.51830251,1812.2,1811.8,23.32966949]
[1746463989247,5.51830251,1812.2,1811.9,5.51904406]
[1746463989579,0.31015553,1812.1,1811.9,5.51904406]
[1746463989893,0.51691825,1812.0,1811.9,6.40923565]
[1746463990046,0.51691825,1812.0,1811.9,0.89019159]
[1746463990242,0.51691825,1812.0,1811.8,5.25345106]
[1746463990578,0.82707378,1812.0,1811.8,10.77279982]
[1746463990782,0.51691825,1811.9,1811.8,5.25345106]
[1746463990950,0.82707378,1811.9,1811.8,5.25345106]
[1746463991580,6.34614216,1811.9,1811.8,5.25345106]
[1746463991962,0.82707378,1811.9,1811.8,5.25345106]
[1746463992163,0.82737214,1811.9,1811.8,5.25345106]
[1746463992560,0.82737045,1811.9,1811.8,5.25345106]
[1746463992766,0.82737045,1811.9,1811.7,6.28148976]
[1746463993089,0.82737045,1811.9,1811.7,6.33668092]
[1746463993277,0.51721492,1811.8,1811.7,6.33668092]
[1746463993472,0.51721492,1811.8,1811.7,8.52677953]
[1746463994173,0.51721492,1811.8,1811.7,3.00728977]
[1746463994375,0.51721492,1811.8,1811.7,0.762]
[1746463994674,0.82760492,1811.8,1811.7,0.762]
[1746463995385,0.82760492,1811.8,1811.7,6.28167765]
[1746463996791,0.82760492,1811.8,1811.7,6.83167765]
[1746463997286,0.31039,1811.8,1811.7,6.83167765]
[1746463997479,11.8007467,1812.3,1811.9,5.51891051]
[1746463997679,1.18007467,1812.3,1812.0,6.34332609]
[1746463997903,0.51745687,1812.2,1812.1,5.51836655]
[1746463998370,0.82791625,1812.2,1812.1,5.51836655]
[1746463998798,0.82791625,1812.2,1812.0,17.53522813]
[1746463998978,0.82791625,1812.2,1812.0,11.59677715]
[1746463999178,0.31045938,1812.1,1812.0,11.59677715]
[1746463999401,0.82791625,1812.1,1812.0,13.30834346]
[1746464000519,0.82791625,1812.1,1812.0,7.78981737]
[1746464000799,0.82791625,1812.1,1812.0,13.30858116]
[1746464001702,0.31045938,1812.1,1812.0,13.30858116]
[1746464001895,5.5175648,1812.4,1812.1,5.51838223]
[1746464002090,2.48169544,1812.1,1812.0,16.51344488]
[1746464004273,2.48169544,1812.1,1812.0,14.80187857]
[1746464004600,2.48169544,1812.1,1812.0,5.25345106]
[1746464005104,2.99853016,1812.1,1812.0,5.25345106]
[1746464005683,2.99856888,1812.1,1812.0,5.25345106]
[1746464005883,3.30869279,1812.1,1812.0,5.25345106]
[1746464006607,3.30869279,1812.1,1812.0,8.45849573]
[1746464006973,3.30869279,1812.1,1812.0,14.79375952]
[1746464007174,2.99856888,1812.1,1812.0,14.79375952]
[1746464007386,2.48169544,1812.1,1812.0,16.82502216]
[1746464007585,2.48169544,1812.1,1812.0,19.82502216]
[1746464007905,2.48169544,1812.1,1812.0,25.01302216]
[1746464018532,2.48169544,1812.1,1812.0,22.98175952]
[1746464018733,2.48169544,1812.1,1812.0,16.97725952]
[1746464021937,38.69562744,1812.1,1812.0,16.97725952]
[1746464024050,38.69562744,1812.1,1812.0,13.97725952]
[1746464024249,39.0060363,1812.1,1812.0,5.25345106]
[1746464024436,44.20632334,1812.1,1812.0,5.25345106]
[1746464025775,44.20653046,1812.1,1811.9,10.77247748]
[1746464026172,44.20653046,1812.1,1811.9,5.25345106]
[1746464026471,0.31061598,1812.0,1811.9,5.25345106]
[1746464026708,0.82799939,1812.0,1811.9,5.25345106]
[1746464027002,0.82799939,1812.0,1811.9,10.77251944]
[1746464027298,0.82799939,1812.0,1811.9,5.25345106]
[1746464027493,0.31061598,1812.0,1811.9,5.25345106]
[1746464027697,0.82845719,1812.0,1811.9,5.25345106]
[1746464031571,0.82845719,1812.0,1811.8,3.20504467]
[1746464031804,0.51784121,1811.9,1811.8,3.20504467]
[1746464032414,0.82845719,1811.9,1811.8,3.20504467]
[1746464033411,0.82845719,1811.9,1811.8,8.72441766]
[1746464034538,0.82845719,1811.9,1811.8,3.20504467]
[1746464035047,0.82845719,1811.9,1811.8,8.72441766]
[1746464036040,0.82845719,1811.9,1811.8,8.77960588]
[1746464036435,0.51784121,1811.9,1811.8,8.72441766]
[1746464038042,0.51784121,1811.9,1811.8,3.20504467]
[1746464038242,0.51784121,1811.9,1811.8,8.72441766]
[1746464038640,0.51784121,1811.9,1811.8,3.20504467]
[1746464038845,0.51784121,1811.9,1811.8,8.72441766]
[1746464039636,0.51784121,1811.9,1811.8,3.20504467]
[1746464040548,0.51741631,1811.9,1811.8,3.20504467]
[1746464041142,0.51741631,1811.9,1811.8,8.72441766]
[1746464041310,0.51741631,1811.9,1811.8,3.20504467]
[1746464041640,0.8278711,1811.9,1811.8,3.20504467]
[1746464041842,0.8278711,1811.9,1811.8,8.72441766]
[1746464042043,0.8278711,1811.9,1811.8,9.50761766]
[1746464042233,0.8278711,1811.9,1811.8,12.08762455]
[1746464042546,0.8278711,1811.9,1811.8,9.50761766]
[1746464042947,38.69562744,1812.1,1811.9,5.51900869]
[1746464043346,38.69562744,1812.1,1811.9,5.51885623]
[1746464043648,0.51744471,1812.0,1811.9,13.97735196]
[1746464043843,38.69562744,1812.1,1812.0,5.51876379]
[1746464044346,39.21306682,1812.1,1812.0,5.51876379]
[1746464044847,39.21306682,1812.1,1811.9,13.97735196]
[1746464045048,38.69562744,1812.1,1811.9,13.97735196]
[1746464048853,0.51771986,1812.0,1811.9,13.97735196]
[1746464049542,38.69562744,1812.1,1811.9,13.97735196]
[1746464050555,0.51776966,1812.0,1811.9,13.97735196]
[1746464053061,0.51776966,1812.0,1811.9,16.46812805]
[1746464053240,0.51776966,1812.0,1811.9,20.29462805]
[1746464053454,38.69562744,1812.1,1812.0,5.51876379]
[1746464053773,38.69562744,1812.1,1812.0,6.06876379]
[1746464054126,39.21347284,1812.1,1812.0,6.06876379]
[1746464054329,39.21347284,1812.1,1812.0,7.23869154]
[1746464055169,38.69562744,1812.1,1812.0,7.23869154]
[1746464055327,38.69562744,1812.1,1812.0,10.23869154]
[1746464055527,38.69562744,1812.1,1812.0,10.29387244]
[1746464055726,38.69562744,1812.1,1812.0,15.4921426]
[1746464058276,38.69562744,1812.1,1812.0,14.32221485]
[1746464062354,38.69562744,1812.1,1812.0,13.77221485]
[1746464062591,39.21322725,1812.1,1812.0,14.32221485]
[1746464063089,38.69562744,1812.1,1812.0,14.32221485]
[1746464064194,38.69562744,1812.1,1812.0,8.25345106]
[1746464064393,48.71661621,1812.1,1812.0,5.25345106]
[1746464064568,39.52397501,1812.1,1812.0,5.25345106]
[1746464064954,39.00625197,1812.1,1812.0,5.25345106]
[1746464065167,39.52395995,1812.1,1812.0,5.25345106]
[1746464065368,39.21333166,1812.1,1812.0,5.25345106]
[1746464065574,39.21333166,1812.1,1812.0,10.77221485]
[1746464065894,3.31005776,1812.1,1812.0,10.77221485]
[1746464066395,2.99939966,1812.1,1812.0,10.77221485]
[1746464067095,2.99939966,1812.1,1812.0,5.25345106]
[1746464068669,3.31012192,1812.1,1812.0,10.77221485]
[1746464069702,3.31012192,1812.1,1812.0,5.25345106]
[1746464070455,3.31017166,1812.1,1812.0,5.25345106]
[1746464071007,3.31017166,1812.1,1812.0,10.77221485]
[1746464071295,3.31017166,1812.1,1812.0,12.79884771]
[1746464072505,3.31017166,1812.1,1812.0,13.34884771]
[1746464073287,2.99939966,1812.1,1812.0,13.34884771]
[1746464074419,2.99939966,1812.1,1812.0,11.32221485]
[1746464074848,3.31032328,1812.1,1812.0,11.32221485]
[1746464076227,3.31032328,1812.1,1812.0,14.32221485]
[1746464078425,2.99939966,1812.1,1812.0,14.32221485]
[1746464078615,2.48169544,1812.1,1812.0,15.14931485]
[1746464078813,2.48169544,1812.1,1812.0,17.99923771]
[1746464079016,2.47706833,1812.1,1812.0,17.99923771]
[1746464092865,0.7818,1812.8,1812.3,1.3579]
[1746464093079,0.7818,1812.9,1812.7,3.20504467]
[1746464093239,0.7818,1812.9,1812.7,8.77680507]
[1746464093449,0.7818,1812.9,1812.7,8.77664155]
[1746464093634,0.7818,1812.9,1812.8,5.51632833]
[1746464093835,0.8027,1813.1,1812.9,5.51591462]
[1746464094063,0.31031761,1813.0,1812.9,8.7208904]
[1746464095254,0.8027,1813.1,1812.9,8.7208904]
[1746464096466,0.8027,1813.1,1812.9,3.20504467]
[1746464097087,0.8027,1813.1,1812.9,8.72095403]
[1746464097366,0.8027,1813.1,1812.9,3.20504467]
[1746464097544,6.94991283,1813.1,1812.8,5.51612392]
[1746464097745,6.95011505,1813.1,1812.7,3.62960035]
[1746464097960,0.8099,1813.0,1812.7,3.62960035]
[1746464098471,0.8099,1813.0,1812.7,9.14612929]
[1746464098671,0.8099,1813.0,1812.7,14.6625548]
[1746464099372,0.8099,1813.0,1812.8,5.51631728]
[1746464101244,0.8099,1813.0,1812.7,14.39947692]
[1746464101443,0.8099,1813.0,1812.7,19.91591328]
[1746464101668,0.8099,1813.0,1812.8,5.51630971]
[1746464102155,0.8099,1813.0,1812.7,19.91594461]
[1746464102558,0.8099,1813.0,1812.8,5.51626547]
[1746464103154,0.8099,1813.0,1812.8,5.51612946]
[1746464103354,0.8099,1813.0,1812.9,5.51602404]
[1746464103569,0.7737,1813.2,1812.9,8.77622764]
[1746464103876,6.28882473,1813.2,1812.9,13.97451977]
[1746464105474,0.7737,1813.2,1812.9,13.97451977]
[1746464109102,0.7737,1813.2,1812.9,13.97434594]
[1746464109495,0.7737,1813.2,1812.9,14.78512692]
[1746464109662,0.7737,1813.2,1812.9,9.53167586]
[1746464110494,6.28891093,1813.2,1812.8,10.76962227]
[1746464110695,5.51554474,1813.1,1812.8,5.25345106]
[1746464110898,0.7978,1812.9,1812.8,5.25345106]
[1746464111258,0.7978,1812.9,1812.8,10.76977939]
[1746464112859,0.7791,1813.1,1812.8,10.76977939]
[1746464113266,0.7791,1813.1,1812.8,10.76957718]
[1746464113504,0.7791,1813.1,1812.8,10.82472273]
[1746464114100,0.7791,1813.1,1812.9,5.51599213]
[1746464114466,0.7791,1813.1,1812.8,10.76956369]
[1746464114664,6.29454384,1813.1,1812.8,10.76956369]
[1746464114959,0.7791,1813.1,1812.8,10.82472273]
[1746464115602,0.7791,1813.1,1812.8,5.57127167]
[1746464115762,0.7791,1813.1,1812.8,11.03227983]
[1746464115966,0.7791,1813.1,1812.8,11.03222985]
[1746464116298,0.7791,1813.1,1812.8,5.57127063]
[1746464116486,0.7791,1813.1,1812.8,7.56834784]
[1746464116819,5.51528773,1813.2,1812.9,8.72093485]
[1746464117004,6.32573574,1813.3,1813.0,5.51561245]
[1746464117466,0.30976634,1813.2,1813.0,5.51561245]
[1746464118102,0.30976634,1813.2,1812.9,13.97430416]
[1746464118267,11.8407969,1813.3,1812.9,15.63792755]
[1746464118602,6.32573574,1813.3,1812.9,15.63792755]
[1746464118799,6.32573574,1813.3,1813.0,5.51567612]
[1746464119402,6.32573574,1813.3,1812.9,21.15374092]
[1746464120201,0.31014123,1813.2,1812.9,21.15374092]
[1746464120407,0.31014123,1813.2,1813.1,8.72046025]
[1746464120625,0.31014123,1813.2,1813.1,3.20504467]
[1746464121829,0.31014123,1813.2,1813.1,8.77561077]
[1746464122109,0.31014123,1813.2,1813.1,8.77560898]
[1746464122615,6.32005631,1813.6,1813.2,5.51489086]
[1746464122817,6.32005631,1813.6,1813.2,7.17851749]
[1746464123402,0.806,1813.6,1813.3,8.71957366]
[1746464123607,0.31049389,1813.5,1813.3,14.23423447]
[1746464124004,0.31049389,1813.5,1813.3,8.71957366]
[1746464124480,0.31049389,1813.5,1813.3,5.51452899]
[1746464124815,0.31039359,1813.4,1813.3,6.86238422]
[1746464127112,0.806,1813.6,1813.3,6.86238422]
[1746464128117,0.31015739,1813.5,1813.3,12.37698895]
[1746464128318,0.31015739,1813.5,1813.4,5.51450314]
[1746464128512,0.31015739,1813.5,1813.4,11.41717618]
[1746464131429,0.7599,1813.7,1813.4,11.41717618]
[1746464131596,0.7599,1813.7,1813.4,11.4169949]
[1746464131799,0.7599,1813.7,1813.5,5.51416711]
[1746464132196,0.30995281,1813.6,1813.4,11.41699335]
[1746464132398,0.30995281,1813.6,1813.5,1.14169934]
[1746464132650,0.30995281,1813.6,1813.5,6.6558984]
[1746464133431,0.30995281,1813.6,1813.5,1.14169934]
[1746464133823,0.30995281,1813.6,1813.5,6.6558984]
[1746464134138,0.30995281,1813.6,1813.5,1.14169934]
[1746464145121,0.30995281,1813.6,1813.5,6.6558984]
[1746464145435,0.30995281,1813.6,1813.5,7.4816984]
[1746464145641,6.29303345,1814.0,1813.6,5.51367827]
[1746464145852,6.29303345,1814.0,1813.7,6.06487091]
[1746464146218,0.7802,1814.0,1813.7,6.06487091]
[1746464146422,0.7802,1814.0,1813.7,6.06475132]
[1746464147020,0.31005036,1813.9,1813.7,6.06475132]
[1746464147433,0.31005036,1813.9,1813.7,11.57817954]
[1746464147607,0.31005036,1813.9,1813.8,1.15781795]
[1746464147809,0.7802,1814.0,1813.8,1.15781795]
[1746464148551,0.31004141,1813.9,1813.8,1.15781795]
[1746464149254,0.31004141,1813.9,1813.8,6.67110497]
[1746464149411,0.31004141,1813.9,1813.8,11.92455603]
[1746464151566,0.31004141,1813.9,1813.8,6.41126901]
[1746464151759,5.51208456,1814.2,1813.8,11.92455603]
[1746464151988,5.51208456,1814.2,1813.9,0.80981872]
[1746464152250,0.31001576,1814.1,1813.9,0.80981872]
[1746464152456,0.31001576,1814.1,1813.9,6.32278584]
[1746464152757,0.31001576,1814.1,1813.9,0.80981872]
[1746464152960,0.31001576,1814.0,1813.9,0.80981872]
[1746464157834,0.31001576,1814.0,1813.9,6.32280179]
[1746464158859,0.31001576,1814.0,1813.9,0.80981872]
[1746464159371,0.31001576,1814.0,1813.9,6.32280179]
[1746464160481,0.31001576,1814.0,1813.9,0.80981872]
[1746464160623,5.51298307,1813.9,1813.8,1.15781795]
[1746464160954,0.31001576,1813.9,1813.7,15.93628105]
[1746464161127,0.31001576,1813.9,1813.7,21.44974846]
[1746464161330,0.31001576,1813.9,1813.7,15.93628105]
[1746464161559,0.31001576,1813.9,1813.7,15.93623772]
[1746464161901,6.28871217,1814.1,1813.8,7.10688872]
[1746464162154,6.28871217,1814.1,1813.8,1.59362377]
[1746464162361,6.28871217,1814.1,1813.8,7.10677026]
[1746464163170,0.30987286,1814.0,1813.8,7.10677026]
[1746464163655,0.30987286,1814.0,1813.8,1.59362377]
[1746464164159,0.30987286,1813.9,1813.8,1.59362377]
[1746464165448,0.30987286,1814.0,1813.8,1.59362377]
[1746464166264,0.30987286,1813.9,1813.8,1.59362377]
[1746464167360,5.8225569,1814.0,1813.8,1.59362377]
[1746464167926,11.33547986,1814.0,1813.8,1.59362377]
[1746464168126,5.8225569,1814.0,1813.8,1.59362377]
[1746464168341,0.30987286,1813.9,1813.8,1.59362377]
[1746464171163,5.82285593,1813.9,1813.8,1.59362377]
[1746464171365,5.82297345,1813.9,1813.7,9.87145106]
[1746464171537,5.51328702,1813.8,1813.7,5.25345106]
[1746464171939,5.51328702,1813.8,1813.2,9.62854247]
[1746464171940,0.7582,1813.8,1813.2,3.69903612]
[1746464172143,6.27300725,1813.3,1813.2,3.69903612]
[1746464172558,6.58288011,1813.3,1813.2,3.69903612]
[1746464173348,6.58319009,1813.3,1813.2,3.69903612]
[1746464174031,6.58319009,1813.3,1812.9,3.8046]
[1746464174235,6.58319009,1813.3,1812.9,11.33451258]
[1746464174476,5.5151305,1813.2,1812.9,11.33451258]
[1746464175269,5.51557292,1813.1,1812.9,5.01408184]
[1746464175466,5.51557292,1813.1,1812.9,3.0]
[1746464175637,5.51532407,1813.2,1812.9,3.0]
[1746464176029,5.51543172,1813.1,1812.9,3.0]
[1746464176971,6.2731322,1813.3,1812.9,8.51600111]
[1746464177177,11.78820618,1813.3,1812.9,8.51600111]
[1746464177469,6.2731322,1813.3,1812.9,8.51600111]
[1746464177662,11.78818844,1813.3,1812.9,8.51600111]
[1746464178282,5.51513979,1813.2,1812.9,8.51600111]
[1746464180488,5.51513979,1813.2,1812.9,3.0]
[1746464181150,5.51550814,1813.1,1812.9,3.0]
[1746464182889,5.51602404,1812.9,1812.8,9.86845106]
[1746464183095,5.51585458,1813.0,1812.6,5.25345106]
[1746464183096,0.8203,1813.0,1812.6,5.25345106]
[1746464183386,5.51693699,1812.6,1812.5,5.25345106]
[1746464183590,11.03416408,1812.6,1812.4,8.32261305]
[1746464183748,5.51724137,1812.5,1812.4,8.32261305]
[1746464184186,5.51724137,1812.5,1812.4,4.617]
[1746464184505,5.51714208,1812.6,1812.3,3.70561305]
[1746464185688,11.0343633,1812.6,1812.3,3.70561305]
[1746464185891,5.51729567,1812.5,1812.3,3.70561305]
[1746464186768,5.51754579,1812.4,1812.3,3.70561305]
[1746464187590,6.27274579,1812.4,1812.3,3.70561305]
[1746464188776,6.27274579,1812.4,1812.1,4.617]
[1746464188777,5.51787721,1812.3,1812.1,4.617]
[1746464189157,0.7868,1812.7,1812.1,12.49381773]
[1746464189362,5.51698572,1812.6,1812.3,9.47488834]
[1746464189585,6.30366172,1812.7,1812.3,9.47488834]
[1746464190006,5.51709517,1812.6,1812.3,0.7521]
[1746464190293,5.51711861,1812.6,1812.2,8.51813738]
[1746464190506,5.51711861,1812.6,1812.2,10.5622498]
[1746464191358,5.51711861,1812.6,1812.3,5.51783777]
[1746464191559,6.30364247,1812.7,1812.4,5.51752771]
[1746464191892,5.51651099,1812.8,1812.4,6.3241867]
[1746464192197,5.51614873,1812.9,1812.5,5.51703678]
[1746464192373,5.51614873,1812.9,1812.5,7.0216636]
[1746464192689,5.51614873,1812.9,1812.5,12.53873297]
[1746464192895,5.51614873,1812.9,1812.5,7.0216636]
[1746464193887,5.51614873,1812.9,1812.5,1.50462682]
[1746464194399,5.51644324,1812.8,1812.5,1.50462682]
[1746464194603,11.03242776,1812.9,1812.5,7.02185202]
[1746464194773,5.51614873,1812.9,1812.5,7.02185202]
[1746464195092,6.337381,1813.0,1812.5,7.02185202]
[1746464195294,5.51467289,1813.4,1812.9,6.2752851]
[1746464195786,5.51500576,1813.3,1812.9,0.7593]
[1746464196291,6.31977989,1813.2,1812.7,6.3475923]
[1746464197088,6.31977989,1813.2,1812.7,11.86403538]
[1746464197293,7.50325451,1813.2,1812.8,5.51631584]
[1746464198796,7.50325451,1813.2,1812.8,8.72136051]
[1746464199508,0.30912963,1813.1,1812.8,8.72136051]
[1746464199690,0.30912963,1813.1,1813.0,3.20504467]
[1746464200070,0.30912963,1813.1,1812.8,8.72136051]
[1746464200400,6.31977989,1813.2,1812.8,10.75362449]
[1746464200703,6.31315709,1813.2,1812.8,10.75362449]
[1746464201320,6.26698504,1813.3,1813.0,3.20504467]
[1746464202080,0.30965722,1813.2,1813.0,3.20504467]
[1746464202804,0.30965722,1813.1,1812.8,5.23730865]
[1746464203006,5.8251085,1813.1,1812.8,5.23730865]
[1746464203208,5.8251085,1813.1,1812.8,3.20504467]
[1746464203411,0.30965722,1813.1,1812.8,8.72132287]
[1746464203716,0.30965722,1813.0,1812.8,8.72132287]
[1746464204613,0.30965722,1813.1,1812.8,8.72132287]
[1746464205821,5.82509633,1813.1,1812.8,3.20504467]
[1746464206137,0.30965722,1813.1,1812.8,10.20195642]
[1746464206620,0.30965722,1813.1,1812.8,4.68565772]
[1746464206914,0.30965722,1813.1,1812.8,10.20188344]
[1746464207714,0.30965722,1813.1,1812.8,15.71801234]
[1746464207917,0.30965722,1813.1,1812.8,10.20178662]
[1746464209212,0.30965722,1813.0,1812.8,10.20178662]
[1746464209424,0.30965722,1813.0,1812.9,1.02017866]
[1746464210115,0.30965722,1813.1,1812.9,1.02017866]
[1746464210322,0.30965722,1813.1,1812.8,10.20176896]
[1746464210619,0.30965722,1813.1,1812.8,15.71788081]
[1746464210782,0.30965722,1813.1,1812.8,10.20176896]
[1746464213098,0.30965722,1813.1,1812.8,15.71791906]
[1746464213517,0.30965722,1813.1,1812.8,15.71789358]
[1746464213719,0.30965722,1813.1,1812.8,10.20176896]
[1746464214120,5.82522858,1813.1,1812.8,4.68565772]
[1746464214292,0.30965722,1813.0,1812.8,3.20504467]
[1746464215020,0.30965722,1813.0,1812.8,8.72128263]
[1746464217730,0.30965722,1813.0,1812.8,8.7212003]
[1746464217910,1.09085722,1813.0,1812.8,3.20504467]
[1746464218111,0.30965722,1813.0,1812.8,3.20504467]
[1746464218424,0.30965722,1812.9,1812.8,8.72136648]
[1746464218621,0.30965722,1812.9,1812.8,3.20504467]
[1746464219629,0.30965722,1812.9,1812.8,8.721373]
[1746464222308,0.30965722,1812.9,1812.8,10.75361741]
[1746464223027,0.30965722,1812.9,1812.8,5.23728908]
[1746464223224,0.30965722,1812.9,1812.8,3.20504467]
[1746464223725,5.82568126,1812.9,1812.7,5.25345106]
[1746464223930,6.27812833,1812.8,1812.7,5.25345106]
[1746464224135,6.58778555,1812.8,1812.7,5.25345106]
[1746464224429,5.82598555,1812.8,1812.7,5.25345106]
[1746464224810,0.30965722,1812.8,1812.7,5.25345106]
[1746464225209,0.30965722,1812.8,1812.7,8.45849573]
[1746464226605,0.30965722,1812.8,1812.7,3.20504467]
[1746464228913,5.82598555,1812.8,1812.5,9.51377094]
[1746464229554,0.30965722,1812.7,1812.5,9.51377094]
[1746464230246,0.30965722,1812.6,1812.5,3.99654467]
[1746464230651,0.30965722,1812.6,1812.5,9.51378604]
[1746464231254,0.30965722,1812.6,1812.5,3.99654467]
[1746464234453,0.30965722,1812.7,1812.5,3.20504467]
[1746464234656,5.82632158,1812.7,1812.5,3.20504467]
[1746464235267,0.30965722,1812.6,1812.5,3.20504467]
[1746464236254,0.30965722,1812.7,1812.5,8.72228604]
[1746464237264,0.30965722,1812.7,1812.5,3.20504467]
[1746464237456,0.30965722,1812.6,1812.5,3.20504467]
[1746464238668,0.30965722,1812.7,1812.5,3.20504467]
[1746464239371,0.30965722,1812.6,1812.5,3.20504467]
[1746464239937,0.30965722,1812.6,1812.5,4.07728227]
[1746464240134,5.51617334,1812.9,1812.5,15.91496501]
[1746464240135,0.30965722,1812.8,1812.5,15.91496501]
[1746464240438,0.30965722,1812.8,1812.7,3.20504467]
[1746464241577,5.82598555,1812.8,1812.7,3.20504467]
[1746464242570,0.30965722,1812.8,1812.7,3.20504467]
[1746464242746,5.82598555,1812.8,1812.7,3.20504467]
[1746464242946,5.82598555,1812.8,1812.5,4.00824467]
[1746464243974,0.30965722,1812.7,1812.5,9.52547762]
[1746464244567,0.30965722,1812.6,1812.5,9.52547762]
[1746464244771,0.30965722,1812.6,1812.5,11.55510464]
[1746464246478,0.30965722,1812.6,1812.5,6.03787169]
[1746464247593,0.30965722,1812.6,1812.5,11.29132275]
[1746464248277,5.82677815,1812.6,1812.4,3.0]
[1746464249081,0.30965722,1812.5,1812.4,3.0]
[1746464250308,5.51754579,1812.4,1812.3,9.22099573]
[1746464250606,5.8270208,1812.5,1812.3,11.45849573]
[1746464251025,0.30965722,1812.5,1812.3,11.45849573]
[1746464251165,0.30965722,1812.4,1812.3,19.04452319]
[1746464251699,0.30965722,1812.4,1812.3,19.86732319]
[1746464252114,5.51663863,1812.7,1812.3,25.38502968]
[1746464252115,0.30965722,1812.6,1812.3,25.38502968]
[1746464252933,0.30965722,1812.5,1812.3,25.38502968]
[1746464253629,0.30965722,1812.5,1812.3,20.13157862]
[1746464254124,5.51663863,1812.7,1812.3,20.13157862]
[1746464254928,0.31076626,1812.6,1812.3,20.13157862]
[1746464255624,0.31076626,1812.6,1812.3,14.61377365]
[1746464255836,0.31076626,1812.6,1812.3,20.13144688]
[1746464256227,0.31076626,1812.5,1812.3,20.13144688]
[1746464257229,5.51663863,1812.7,1812.3,20.13144688]
[1746464257433,5.51663863,1812.7,1812.3,18.06322439]
[1746464258231,0.31076161,1812.6,1812.3,18.06322439]
[1746464259029,0.31076161,1812.5,1812.3,18.06322439]
[1746464259223,0.31076161,1812.5,1812.3,12.5455179]
[1746464259429,0.31076161,1812.5,1812.3,18.06316768]
[1746464259634,5.51663863,1812.7,1812.3,23.31661874]
[1746464260207,11.03349942,1812.7,1812.3,17.79894551]
[1746464260540,5.51663863,1812.7,1812.3,17.79894551]
[1746464260749,0.31076273,1812.6,1812.3,17.79892433]
[1746464260951,0.31076273,1812.6,1812.4,5.5175108]
[1746464261939,0.31076273,1812.5,1812.4,5.5175108]
[1746464262245,0.31076273,1812.5,1812.3,20.17144374]
[1746464262845,5.51698188,1812.6,1812.3,20.17144374]
[1746464263447,5.51663863,1812.7,1812.3,25.68912228]
[1746464263650,11.03355248,1812.7,1812.3,20.17144374]